fUST/lending_fUST_20250727
["ID","MTS","AMOUNT","RATE_DAILY","PERIOD"]
[375166426,1753569040896,-484.51837871,0.00019685,2]
[375166427,1753569040906,-460.0,0.00019685,2]
[375166428,1753569040915,-460.0,0.00019685,2]
[375166429,1753569040925,-460.0,0.00019685,2]
[375166430,1753569040936,-460.0,0.00019685,2]
[375166431,1753569040946,-460.0,0.00019685,2]
[375166432,1753569040956,-460.0,0.00019685,2]
[375166433,1753569040965,-460.0,0.00019685,2]
[375166434,1753569040975,-460.0,0.00019685,2]
[375166435,1753569040984,-460.0,0.00019685,2]
[375166436,1753569040994,-460.0,0.00019685,2]
[375166437,1753569041004,-460.0,0.00019685,2]
[375166438,1753569041013,-506.36,0.00019685,2]
[375166439,1753569041023,-460.0,0.00019685,2]
[375166440,1753569041032,-460.0,0.00019685,2]
[375166441,1753569041041,-460.0,0.00019685,2]
[375166442,1753569041052,-460.0,0.00019685,2]
[375166443,1753569041061,-460.0,0.00019685,2]
[375166444,1753569041071,-605.29385071,0.00019685,2]
[375166445,1753569041080,-460.0,0.00019685,2]
[375166446,1753569041090,-460.0,0.00019685,2]
[375166447,1753569041099,-505.94,0.00019685,2]
[375166448,1753569041109,-192.46625259,0.00019685,2]
[375166449,1753569041118,-460.0,0.00019685,2]
[375166450,1753569041127,-460.0,0.00019685,2]
[375166451,1753569041138,-307.39370806,0.00019685,2]
[375166452,1753569041147,-175.01483991,0.00019685,2]
[375166453,1753569041157,-460.0,0.00019685,2]
[375166454,1753569041166,-460.0,0.00019685,2]
[375166455,1753569041176,-151.0,0.00019685,2]
[375166456,1753569041187,-460.0,0.00019685,2]
[375166457,1753569041197,-460.0,0.00019685,2]
[375166458,1753569041206,-460.0,0.00019685,2]
[375166459,1753569041215,-460.0,0.00019685,2]
[375166460,1753569041224,-460.0,0.00019685,2]
[375166461,1753569041234,-460.0,0.00019685,2]
[375166462,1753569041244,-460.0,0.00019685,2]
[375166463,1753569041253,-460.0,0.00019685,2]
[375166464,1753569041263,-151.0,0.00019685,2]
[375166465,1753569041272,-2730.94,0.00019685,2]
[375166466,1753569041282,-460.0,0.00019685,2]
[375166467,1753569041292,-718.1,0.00019685,2]
[375166468,1753569041301,-151.0,0.00019685,2]
[375166469,1753569041312,-151.0,0.00019693,2]
[375166470,1753569041322,-151.0,0.00019693,2]
[375166471,1753569041332,-151.0,0.00019693,2]
[375166472,1753569041352,-771.88,0.00019693,2]
[375166473,1753569041364,-151.0,0.00019693,2]
[375166474,1753569041374,-151.0,0.00019693,2]
[375166475,1753569041384,-460.0,0.00019693,2]
[375166476,1753569041393,-460.0,0.00019693,2]
[375166477,1753569041403,-151.0,0.00019693,2]
[375166478,1753569041413,-151.0,0.00019693,2]
[375166479,1753569041422,-514.20503236,0.00019694,2]
[375166480,1753569041433,-460.0,0.00019694,2]
[375166481,1753569041443,-965.91,0.00019694,2]
[375166482,1753569041453,-460.0,0.00019694,2]
[375166483,1753569041463,-460.0,0.00019694,2]
[375166484,1753569041472,-151.0,0.00019694,2]
[375166485,1753569041482,-758.93,0.00019694,2]
[375166486,1753569041492,-151.0,0.00019694,2]
[375166487,1753569041502,-1123.86,0.00019694,2]
[375166488,1753569041511,-868.98,0.00019694,2]
[375166489,1753569041520,-460.0,0.00019694,2]
[375166490,1753569041531,-460.0,0.00019846,2]
[375166491,1753569041540,-460.0,0.00019846,2]
[375166492,1753569041550,-460.0,0.00019846,2]
[375166493,1753569041560,-1141.22,0.00019846,2]
[375166494,1753569041570,-168.0,0.00019855,2]
[375166495,1753569041579,-460.0,0.00019857,2]
[375166496,1753569041589,-1423.27,0.00019857,2]
[375166497,1753569041598,-460.0,0.00019857,2]
[375166498,1753569041608,-460.0,0.00019857,2]
[375166499,1753569041618,-1123.8,0.00019857,2]
[375166500,1753569041628,-460.0,0.00019857,2]
[375166501,1753569041639,-460.0,0.00019857,2]
[375166502,1753569041649,-776.95,0.00019857,2]
[375166503,1753569041658,-460.0,0.00019857,2]
[375166504,1753569041668,-460.0,0.00019858,2]
[375166505,1753569041679,-460.0,0.00019858,2]
[375166506,1753569041689,-460.0,0.00019858,2]
[375166507,1753569041699,-460.0,0.00019858,2]
[375166508,1753569041799,-358.27,0.00019858,2]
[375166509,1753569041809,-460.0,0.00019858,2]
[375166510,1753569041819,-460.0,0.00019858,2]
[375166511,1753569041828,-460.0,0.00019858,2]
[375166512,1753569041838,-460.0,0.00019858,2]
[375166513,1753569041847,-460.0,0.00019858,2]
[375166514,1753569041857,-460.0,0.00019858,2]
[375166515,1753569041866,-460.0,0.00019858,2]
[375166516,1753569041876,-460.0,0.00019858,2]
[375166517,1753569041886,-460.0,0.00019858,2]
[375166518,1753569041895,-497.18,0.00019858,2]
[375166519,1753569041905,-460.0,0.00019858,2]
[375166520,1753569041914,-460.0,0.00019858,2]
[375166521,1753569041924,-460.0,0.00019858,2]
[375166522,1753569041935,-460.0,0.00019858,2]
[375166523,1753569041944,-460.0,0.00019858,2]
[375166524,1753569041954,-199.27612058,0.00019858,2]
[375166525,1753569041964,-1117.04,0.00019858,2]
[375166526,1753569041974,-460.0,0.00019858,2]
[375166527,1753569041983,-460.0,0.00019858,2]
[375166528,1753569041993,-460.0,0.00019858,2]
[375166529,1753569042002,-460.0,0.00019858,2]
[375166530,1753569042011,-3269.84,0.00019858,2]
[375166531,1753569042021,-460.0,0.00019858,2]
[375166532,1753569042030,-460.0,0.00019858,2]
[375166533,1753569042040,-460.0,0.00019858,2]
[375166534,1753569042049,-460.0,0.00019858,2]
[375166535,1753569042059,-460.0,0.00019858,2]
[375166536,1753569042068,-460.0,0.00019858,2]
[375166537,1753569042078,-460.0,0.00019858,2]
[375166538,1753569042087,-460.0,0.00019858,2]
[375166539,1753569042097,-460.0,0.00019859,2]
[375166540,1753569042106,-460.0,0.00019859,2]
[375166541,1753569042116,-460.0,0.00019859,2]
[375166542,1753569042126,-151.0,0.00019859,2]
[375166543,1753569042135,-151.0,0.00019859,2]
[375166544,1753569042144,-218.480129,0.00019859,2]
[375166545,1753569042154,-151.0,0.00019859,2]
[375166546,1753569042163,-218.480129,0.00019859,2]
[375166547,1753569042173,-151.0,0.00019859,2]
[375166548,1753569042184,-460.0,0.00019859,2]
[375166549,1753569042193,-460.0,0.00019859,2]
[375166550,1753569042203,-151.0,0.00019859,2]
[375166551,1753569042212,-460.0,0.00019859,2]
[375166552,1753569042221,-891.69,0.00019859,2]
[375166553,1753569042230,-460.0,0.00019859,2]
[375166554,1753569042240,-460.0,0.00019859,2]
[375166555,1753569042252,-460.0,0.00019859,2]
[375166556,1753569042262,-460.0,0.00019859,2]
[375166557,1753569042271,-460.0,0.00019859,2]
[375166558,1753569042283,-460.0,0.00019859,2]
[375166559,1753569042293,-460.0,0.00019859,2]
[375166560,1753569042303,-151.0,0.00019859,2]
[375166561,1753569042313,-933.98,0.00019859,2]
[375166562,1753569042322,-151.0,0.00019859,2]
[375166563,1753569042332,-460.0,0.00019859,2]
[375166564,1753569042343,-3361.18603108,0.00019868,2]
[375166565,1753569042354,-1275.34762278,0.000199,2]
[375166566,1753569042364,-168.0,0.00019903,2]
[375166567,1753569042373,-460.0,0.00019957,2]
[375166568,1753569042384,-460.0,0.00019957,2]
[375166569,1753569042395,-502.7,0.00019957,2]
[375166570,1753569042405,-460.0,0.00019957,2]
[375166571,1753569042414,-464.63859633,0.00019957,2]
[375166572,1753569042425,-460.0,0.00019957,2]
[375166573,1753569042435,-460.0,0.00019957,2]
[375166574,1753569042445,-549.61,0.00019957,2]
[375166575,1753569042455,-460.0,0.00019957,2]
[375166576,1753569042464,-460.0,0.00019957,2]
[375166577,1753569042473,-460.0,0.00019957,2]
[375166578,1753569042483,-546.47,0.00019957,2]
[375166579,1753569042493,-460.0,0.00019957,2]
[375166580,1753569042503,-460.0,0.00019957,2]
[375166581,1753569042512,-460.0,0.00019957,2]
[375166582,1753569042522,-189.29681998,0.00019957,2]
[375166583,1753569042532,-460.0,0.00019957,2]
[375166584,1753569042542,-151.0,0.00019958,2]
[375166585,1753569042550,-151.0,0.00019958,2]
[375166586,1753569042560,-151.0,0.00019958,2]
[375166587,1753569042570,-151.0,0.00019958,2]
[375166588,1753569042580,-151.0,0.00019958,2]
[375166589,1753569042590,-151.0,0.00019958,2]
[375166591,1753569042599,-151.0,0.00019958,2]
[375166593,1753569042609,-151.0,0.00019958,2]
[375166595,1753569042618,-460.0,0.00019959,2]
[375166596,1753569042629,-460.0,0.00019959,2]
[375166597,1753569042639,-460.0,0.00019959,2]
[375166598,1753569042648,-460.0,0.00019959,2]
[375166599,1753569042658,-460.0,0.00019959,2]
[375166600,1753569042668,-460.0,0.00019959,2]
[375166602,1753569042678,-460.0,0.00019959,2]
[375166603,1753569042690,-460.0,0.00019959,2]
[375166604,1753569042701,-151.0,0.00019959,2]
[375166606,1753569042712,-460.0,0.00019959,2]
[375166607,1753569042723,-460.0,0.00019959,2]
[375166609,1753569042733,-460.0,0.00019959,2]
[375166611,1753569042744,-460.0,0.00019959,2]
[375166613,1753569042755,-460.0,0.00019959,2]
[375166615,1753569042765,-460.0,0.00019959,2]
[375166616,1753569042776,-460.0,0.00019959,2]
[375166617,1753569042787,-2730.94,0.00019959,2]
[375166618,1753569042797,-718.1,0.00019959,2]
[375166620,1753569042807,-151.0,0.00019967,2]
[375166621,1753569042816,-771.88,0.00019967,2]
[375166622,1753569042826,-460.0,0.00019967,2]
[375166623,1753569042836,-460.0,0.00019967,2]
[375166624,1753569042846,-965.91,0.00019968,2]
[375166625,1753569042856,-460.0,0.00019968,2]
[375166626,1753569042865,-758.93,0.00019968,2]
[375166627,1753569042875,-1123.86,0.00019968,2]
[375166628,1753569042884,-868.98,0.00019968,2]
[375166629,1753569042894,-460.0,0.00019968,2]
[375166630,1753569042903,-590.22862414,0.00019999,2]
[375166631,1753569042913,-500.0,0.00019999,2]
[375166632,1753569042922,-500.0,0.00019999,2]
[375166634,1753569042931,-500.0,0.00019999,2]
[375166635,1753569042941,-495.72493417,0.00019999,2]
[375166636,1753569042950,-500.0,0.00019999,2]
[375166637,1753569042960,-500.0,0.00019999,2]
[375166638,1753569042969,-500.0,0.00019999,2]
[375166639,1753569042979,-500.0,0.00019999,2]
[375166640,1753569042988,-500.0,0.00019999,2]
[375166641,1753569042998,-500.0,0.00019999,2]
[375166642,1753569043008,-500.0,0.00019999,2]
[375166643,1753569043018,-500.0,0.00019999,2]
[375166644,1753569043029,-500.0,0.00019999,2]
[375166645,1753569043039,-9256.00961094,0.0002,4]
[375166646,1753569043049,-8851.70554057,0.0002,2]
[375166647,1753569043059,-151.0,0.00020032,2]
[375166648,1753569043069,-160.0,0.00020033,3]
[375166649,1753569043080,-3644.91188721,0.00020033,2]
[375166650,1753569043091,-17889.10463817,0.00020033,3]
[375166651,1753569043101,-151.0,0.00020033,2]
[375166652,1753569043111,-151.0,0.00020033,2]
[375166653,1753569043120,-171.092799,0.00020035,8]
[375166654,1753569043130,-183.149,0.0002006,2]
[375166655,1753569043139,-372.98694394,0.00020091,2]
[375166656,1753569043149,-1275.34762257,0.00020107,2]
[375166657,1753569043158,-500.0,0.0002012,2]
[375166658,1753569043168,-460.0,0.0002012,2]
[375166659,1753569043177,-460.0,0.0002012,2]
[375166660,1753569043189,-460.0,0.0002012,2]
[375166661,1753569043198,-1141.22,0.0002012,2]
[375166662,1753569043208,-264.41,0.00020131,2]
[375166664,1753569043218,-1423.27,0.00020131,2]
[375166666,1753569043228,-460.0,0.00020131,2]
[375166668,1753569043238,-460.0,0.00020131,2]
[375166670,1753569043247,-1123.8,0.00020131,2]
[375166671,1753569043257,-460.0,0.00020131,2]
[375166672,1753569043268,-460.0,0.00020131,2]
[375166673,1753569043277,-776.95,0.00020131,2]
[375166674,1753569043287,-460.0,0.00020131,2]
[375166675,1753569043297,-460.0,0.00020132,2]
[375166676,1753569043307,-601.87333163,0.00020132,2]
[375166677,1753569043316,-460.0,0.00020132,2]
[375166678,1753569043326,-460.0,0.00020132,2]
[375166679,1753569043336,-460.0,0.00020132,2]
[375166680,1753569043349,-460.0,0.00020132,2]
[375166681,1753569043359,-460.0,0.00020132,2]
[375166682,1753569043368,-460.0,0.00020132,2]
[375166683,1753569043377,-460.0,0.00020132,2]
[375166684,1753569043387,-460.0,0.00020132,2]
[375166685,1753569043396,-497.18,0.00020132,2]
[375166686,1753569043405,-460.0,0.00020132,2]
[375166687,1753569043415,-460.0,0.00020132,2]
[375166688,1753569043424,-460.0,0.00020132,2]
[375166689,1753569043437,-460.0,0.00020132,2]
[375166690,1753569043447,-1117.04,0.00020132,2]
[375166691,1753569043457,-460.0,0.00020132,2]
[375166692,1753569043466,-221.381556,0.00020132,2]
[375166693,1753569043476,-534.56,0.00020132,2]
[375166694,1753569043486,-460.0,0.00020132,2]
[375166695,1753569043495,-460.0,0.00020132,2]
[375166696,1753569043505,-3269.84,0.00020132,2]
[375166697,1753569043514,-460.0,0.00020132,2]
[375166698,1753569043524,-460.0,0.00020132,2]
[375166699,1753569043534,-460.0,0.00020132,2]
[375166700,1753569043544,-460.0,0.00020132,2]
[375166701,1753569043554,-151.0,0.00020132,2]
[375166702,1753569043563,-460.0,0.00020132,2]
[375166703,1753569043573,-460.0,0.00020132,2]
[375166704,1753569043583,-460.0,0.00020132,2]
[375166705,1753569043592,-460.0,0.00020132,2]
[375166706,1753569043602,-151.0,0.00020133,2]
[375166707,1753569043612,-151.0,0.00020133,2]
[375166708,1753569043622,-218.480129,0.00020133,2]
[375166709,1753569043632,-218.480129,0.00020133,2]
[375166710,1753569043642,-151.0,0.00020133,2]
[375166711,1753569043651,-460.0,0.00020133,2]
[375166712,1753569043661,-460.0,0.00020133,2]
[375166713,1753569043671,-460.0,0.00020133,2]
[375166714,1753569043683,-891.69,0.00020133,2]
[375166715,1753569043692,-460.0,0.00020133,2]
[375166717,1753569043702,-312.22,0.00020133,2]
[375166718,1753569043712,-151.0,0.00020133,2]
[375166719,1753569043721,-600.92,0.00020133,2]
[375166720,1753569043730,-460.0,0.00020133,2]
[375166721,1753569043740,-151.0,0.00020133,2]
[375166722,1753569043750,-460.0,0.00020133,2]
[375166723,1753569043760,-460.0,0.00020133,2]
[375166724,1753569043770,-933.98,0.00020133,2]
[375166725,1753569043781,-460.0,0.00020133,2]
[375166726,1753569043791,-150.0,0.00020139,2]
[375166727,1753569043801,-170.748783,0.00020187,2]
[375166728,1753569043810,-324.0,0.000202,2]
[375166729,1753569043820,-429.7456075,0.000202,2]
[375166730,1753569043830,-1000.0,0.00020221,2]
[375166731,1753569043840,-632.89791953,0.00020221,2]
[375166732,1753569043850,-500.0,0.00020221,2]
[375166733,1753569043859,-1000.0,0.00020221,2]
[375166734,1753569043869,-500.0,0.00020221,2]
[375166735,1753569043878,-1000.0,0.00020221,2]
[375166736,1753569043888,-1000.0,0.00020221,2]
[375166737,1753569043900,-151.0,0.00020221,2]
[375166738,1753569043910,-460.0,0.00020231,2]
[375166739,1753569043920,-460.0,0.00020231,2]
[375166740,1753569043932,-502.7,0.00020231,2]
[375166741,1753569043942,-154.64,0.00020231,2]
[375166742,1753569043951,-549.61,0.00020231,2]
[375166743,1753569043961,-460.0,0.00020231,2]
[375166744,1753569043971,-436.37538329,0.00020231,2]
[375166745,1753569043981,-460.0,0.00020231,2]
[375166746,1753569043991,-546.47,0.00020231,2]
[375166747,1753569044083,-460.0,0.00020231,2]
[375166748,1753569044093,-460.0,0.00020231,2]
[375166749,1753569044102,-460.0,0.00020231,2]
[375166750,1753569044112,-460.0,0.00020231,2]
[375166751,1753569044121,-151.0,0.00020232,2]
[375166752,1753569044131,-151.0,0.00020232,2]
[375166753,1753569044140,-460.0,0.00020233,2]
[375166754,1753569044150,-460.0,0.00020233,2]
[375166755,1753569044159,-460.0,0.00020233,2]
[375166756,1753569044169,-460.0,0.00020233,2]
[375166757,1753569044178,-460.0,0.00020233,2]
[375166758,1753569044188,-460.0,0.00020233,2]
[375166759,1753569044198,-460.0,0.00020233,2]
[375166760,1753569044207,-460.0,0.00020233,2]
[375166762,1753569044216,-460.0,0.00020233,2]
[375166764,1753569044226,-460.0,0.00020233,2]
[375166766,1753569044235,-460.0,0.00020233,2]
[375166768,1753569044245,-2730.94,0.00020233,2]
[375166770,1753569044255,-718.1,0.00020233,2]
[375166772,1753569044264,-771.88,0.00020241,2]
[375166773,1753569044274,-460.0,0.00020241,2]
[375166774,1753569044283,-151.0,0.00020241,2]
[375166775,1753569044292,-151.0,0.00020241,2]
[375166776,1753569044302,-965.91,0.00020242,2]
[375166777,1753569044311,-151.0,0.00020242,2]
[375166778,1753569044320,-151.0,0.00020242,2]
[375166779,1753569044330,-460.0,0.00020242,2]
[375166780,1753569044345,-758.93,0.00020242,2]
[375166781,1753569044355,-1123.86,0.00020242,2]
[375166782,1753569044364,-868.98,0.00020242,2]
[375166783,1753569044374,-460.0,0.00020242,2]
[375166784,1753569044384,-156.963928,0.00020242,2]
[375166785,1753569044393,-151.0,0.00020244,2]
[375166786,1753569044403,-151.0,0.00020244,2]
[375166787,1753569044412,-151.0,0.00020244,2]
[375166788,1753569044421,-151.0,0.00020244,2]
[375166789,1753569044430,-163.347634,0.00020244,2]
[375166790,1753569044440,-218.480129,0.00020244,2]
[375166791,1753569044450,-218.480129,0.00020244,2]
[375166792,1753569044459,-151.0,0.00020244,2]
[375166793,1753569044470,-151.0,0.00020255,2]
[375166794,1753569044480,-151.0,0.00020267,2]
[375166795,1753569044489,-151.0,0.00020267,2]
[375166796,1753569044498,-151.0,0.0002027,2]
[375166797,1753569044508,-500.0,0.00020273,2]
[375166798,1753569044518,-500.38,0.00020273,2]
[375166799,1753569044527,-500.0,0.00020273,2]
[375166800,1753569044537,-500.0,0.00020273,2]
[375166801,1753569044546,-576.27187642,0.00020273,2]
[375166802,1753569044556,-500.0,0.00020273,2]
[375166803,1753569044566,-500.0,0.00020273,2]
[375166804,1753569044575,-500.0,0.00020273,2]
[375166805,1753569044586,-500.35759823,0.00020273,2]
[375166806,1753569044596,-500.0,0.00020273,2]
[375166807,1753569044606,-500.0,0.00020273,2]
[375166808,1753569044615,-160.11934557,0.00020273,2]
[375166809,1753569044625,-500.0,0.00020273,2]
[375166810,1753569044635,-500.0,0.00020273,2]
[375166811,1753569044644,-500.0,0.00020273,2]
[375166812,1753569044654,-500.0,0.00020273,2]
[375166813,1753569044664,-120.35592205,0.00020273,2]
[375166814,1753569044757,-379.64407795,0.00020273,2]
[375166815,1753569044767,-500.0,0.00020273,2]
[375166816,1753569044776,-500.0,0.00020273,2]
[375166817,1753569044786,-500.0,0.00020273,2]
[375166818,1753569044796,-500.0,0.00020273,2]
[375166819,1753569044805,-500.0,0.00020273,2]
[375166820,1753569044814,-500.0,0.00020273,2]
[375166821,1753569044824,-500.0,0.00020273,2]
[375166822,1753569044834,-500.0,0.00020273,2]
[375166823,1753569044843,-500.0,0.00020273,2]
[375166824,1753569044854,-500.0,0.00020273,2]
[375166825,1753569044864,-320.06516277,0.00020273,2]
[375166826,1753569044874,-500.61699106,0.00020273,2]
[375166827,1753569044883,-397.21657125,0.00020273,2]
[375166828,1753569044896,-104.01305085,0.00020273,2]
[375166829,1753569044906,-218.480129,0.00020273,2]
[375166830,1753569044916,-141.00036743,0.00020273,2]
[375166831,1753569044941,-460.0,0.00019685,2]
[375166832,1753569044951,-77.47976157,0.00020273,2]
[375166833,1753569044960,-233.657832,0.00020273,2]
[375166834,1753569044970,-151.0,0.00020273,2]
[375166835,1753569044979,-231.68366378,0.00020273,2]
[375166836,1753569044991,-268.31633622,0.00020273,2]
[375166837,1753569045000,-151.0,0.00020273,2]
[375166838,1753569045010,-151.0,0.00020273,2]
[375166839,1753569045020,-151.0,0.00020273,2]
[375166840,1753569045029,-151.0,0.00020273,2]
[375166841,1753569045039,-500.0,0.00020273,2]
[375166842,1753569045048,-151.0,0.00020273,2]
[375166843,1753569045058,-151.0,0.00020273,2]
[375166844,1753569045068,-151.0,0.00020273,2]
[375166845,1753569045078,-198.0,0.00020273,2]
[375166846,1753569045087,-151.0,0.00020273,2]
[375166847,1753569045098,-258.15145505,0.00020273,2]
[375166848,1753569045108,-151.0,0.00020273,2]
[375166849,1753569045117,-151.0,0.0002028,2]
[375166850,1753569045127,-151.0,0.0002028,2]
[375166851,1753569045137,-214.8008262,0.0002028,2]
[375166852,1753569045146,-476.98041219,0.0002028,2]
[375166853,1753569045156,-12629.83479014,0.0002028,2]
[375166854,1753569045165,-151.0,0.00020333,2]
[375166855,1753569045174,-334.43927572,0.00020348,2]
[375166856,1753569045185,-460.0,0.00020394,2]
[375166857,1753569045194,-460.0,0.00020394,2]
[375166858,1753569045203,-1141.22,0.00020394,2]
[375166859,1753569045213,-1423.27,0.00020405,2]
[375166860,1753569045222,-460.0,0.00020405,2]
[375166861,1753569045232,-1123.8,0.00020405,2]
[375166862,1753569045242,-154.34,0.00020405,2]
[375166863,1753569045251,-776.95,0.00020405,2]
[375166864,1753569045260,-460.0,0.00020405,2]
[375166865,1753569045269,-460.0,0.00020406,2]
[375166866,1753569045280,-460.0,0.00020406,2]
[375166867,1753569045289,-460.0,0.00020406,2]
[375166868,1753569045298,-460.0,0.00020406,2]
[375166869,1753569045308,-460.0,0.00020406,2]
[375166870,1753569045317,-460.0,0.00020406,2]
[375166871,1753569045326,-460.0,0.00020406,2]
[375166872,1753569045338,-497.18,0.00020406,2]
[375166873,1753569045349,-460.0,0.00020406,2]
[375166874,1753569045358,-460.0,0.00020406,2]
[375166875,1753569045368,-460.0,0.00020406,2]
[375166876,1753569045378,-460.0,0.00020406,2]
[375166877,1753569045388,-1117.04,0.00020406,2]
[375166878,1753569045397,-460.0,0.00020406,2]
[375166879,1753569045406,-460.0,0.00020406,2]
[375166880,1753569045418,-3269.84,0.00020406,2]
[375166881,1753569045427,-460.0,0.00020406,2]
[375166882,1753569045438,-411.2,0.00020406,2]
[375166883,1753569045448,-305.17,0.00020406,2]
[375166884,1753569045457,-398.46,0.00020406,2]
[375166885,1753569045467,-263.7,0.00020406,2]
[375166886,1753569045476,-460.0,0.00020407,2]
[375166887,1753569045485,-518.21,0.00020407,2]
[375166888,1753569045495,-460.0,0.00020407,2]
[375166889,1753569045504,-891.69,0.00020407,2]
[375166890,1753569045513,-460.0,0.00020407,2]
[375166891,1753569045523,-460.0,0.00020407,2]
[375166892,1753569045532,-460.0,0.00020407,2]
[375166893,1753569045541,-933.98,0.00020407,2]
[375166894,1753569045551,-460.0,0.00020407,2]
[375166895,1753569045560,-218.480129,0.00020416,2]
[375166896,1753569045569,-218.480129,0.00020416,2]
[375166897,1753569045578,-151.0,0.00020416,2]
[375166898,1753569045588,-151.0,0.00020416,2]
[375166899,1753569045597,-214.8008262,0.00020417,3]
[375166900,1753569045607,-321.0,0.00020439,2]
[375166901,1753569045617,-321.0,0.00020457,2]
[375166902,1753569045626,-321.0,0.00020486,2]
[375166903,1753569045636,-460.0,0.00020505,2]
[375166904,1753569045646,-460.0,0.00020505,2]
[375166905,1753569045655,-502.7,0.00020505,2]
[375166906,1753569045664,-549.61,0.00020505,2]
[375166907,1753569045674,-460.0,0.00020505,2]
[375166908,1753569045685,-460.0,0.00020505,2]
[375166909,1753569045695,-546.47,0.00020505,2]
[375166910,1753569045705,-300.95,0.00020505,2]
[375166911,1753569045715,-460.0,0.00020505,2]
[375166912,1753569045724,-460.0,0.00020505,2]
[375166913,1753569045733,-460.0,0.00020505,2]
[375166914,1753569045743,-321.0,0.00020506,2]
[375166915,1753569045752,-151.0,0.00020506,2]
[375166916,1753569045762,-151.0,0.00020506,2]
[375166917,1753569045771,-151.0,0.00020506,2]
[375166918,1753569045781,-258.2081,0.00020507,2]
[375166919,1753569045791,-460.0,0.00020507,2]
[375166920,1753569045800,-554.07420991,0.00020507,2]
[375166921,1753569045810,-460.0,0.00020507,2]
[375166922,1753569045820,-306.1210763,0.00020507,2]
[375166923,1753569045829,-315.3,0.00020507,2]
[375166924,1753569045839,-460.0,0.00020507,2]
[375166925,1753569045848,-460.0,0.00020507,2]
[375166926,1753569045858,-460.0,0.00020507,2]
[375166927,1753569045868,-460.0,0.00020507,2]
[375166928,1753569045878,-460.0,0.00020507,2]
[375166929,1753569045888,-2730.94,0.00020507,2]
[375166930,1753569045899,-718.1,0.00020507,2]
[375166931,1753569045908,-151.0,0.00020515,2]
[375166932,1753569045918,-771.88,0.00020515,2]
[375166933,1753569045928,-460.0,0.00020515,2]
[375166934,1753569045939,-246.81665,0.00020515,2]
[375166935,1753569045949,-151.0,0.00020515,2]
[375166936,1753569045958,-965.91,0.00020516,2]
[375166937,1753569045968,-460.0,0.00020516,2]
[375166938,1753569045977,-758.93,0.00020516,2]
[375166945,1753569046094,-1123.86,0.00020516,2]
[375166946,1753569046104,-868.98,0.00020516,2]
[375166947,1753569046114,-1275.34762257,0.00020521,3]
[375166948,1753569046124,-549.22553689,0.0002053,2]
[375166949,1753569046133,-500.0,0.00020547,2]
[375166950,1753569046143,-151.0,0.00020547,2]
[375166951,1753569046153,-151.0,0.00020547,2]
[375166952,1753569046162,-151.0,0.00020547,2]
[375166953,1753569046171,-500.0,0.00020547,2]